bitfinex-derivatives/quotes_BTCF0:USTF0_20241116
["timestamp","ask_amount","ask_price","bid_price","bid_amount"]
[1731720494509,0.10420168,91500.0,91487.0,0.1239708]
[1731720494712,0.00883561,91499.0,91487.0,0.1239708]
[1731720495014,0.00884797,91498.0,91487.0,0.1239708]
[1731720495219,0.10420168,91500.0,91487.0,0.1239708]
[1731720495512,0.0088458,91499.0,91487.0,8.144e-05]
[1731720495719,0.0088458,91498.0,91487.0,8.144e-05]
[1731720495919,0.0088458,91497.0,91488.0,0.12388936]
[1731720496105,0.0088458,91496.0,91488.0,0.12388936]
[1731720496308,0.10420168,91500.0,91488.0,0.12388936]
[1731720496503,0.00883806,91499.0,91495.0,0.12388936]
[1731720496718,0.00883806,91498.0,91495.0,0.12388936]
[1731720497019,0.00883806,91497.0,91495.0,0.12388936]
[1731720497223,0.00883806,91496.0,91495.0,0.12388936]
[1731720497413,0.00883806,91499.0,91495.0,0.12388936]
[1731720497607,0.00883806,91498.0,91495.0,0.12388936]
[1731720497814,0.00883806,91497.0,91495.0,0.12388936]
[1731720498016,0.10420168,91500.0,91495.0,0.12388936]
[1731720499318,0.00899385,91499.0,91495.0,0.12388936]
[1731720499518,0.10420168,91500.0,91495.0,0.12388936]
[1731720499827,0.00899466,91499.0,91495.0,0.12388936]
[1731720500123,0.10420168,91500.0,91495.0,0.12388936]
[1731720500327,0.00898933,91499.0,91495.0,0.12388936]
[1731720500521,0.00898933,91498.0,91495.0,0.12388936]
[1731720500817,0.10420168,91500.0,91495.0,0.12388936]
[1731720501024,0.00899056,91499.0,91495.0,0.12388936]
[1731720501225,0.00899056,91498.0,91495.0,0.12388936]
[1731720501426,0.00899056,91497.0,91488.0,0.14574879]
[1731720501619,0.10420168,91500.0,91488.0,0.02185943]
[1731720501620,0.3608,91493.0,91488.0,0.02185943]
[1731720502134,0.00916254,91492.0,91489.0,0.12388936]
[1731720502429,0.00916254,91491.0,91489.0,0.12388936]
[1731720502621,0.3608,91493.0,91488.0,0.02185943]
[1731720503825,0.3608,91493.0,91492.0,0.12388936]
[1731720504035,0.36987223,91493.0,91492.0,0.12388936]
[1731720504421,0.36987331,91493.0,91492.0,0.12388936]
[1731720505227,0.10420168,91500.0,91492.0,0.12388936]
[1731720505525,0.00901919,91499.0,91494.0,0.3608]
[1731720505731,0.00901919,91498.0,91494.0,0.3608]
[1731720505932,0.00901919,91497.0,91494.0,0.3608]
[1731720506227,0.10420168,91500.0,91494.0,0.3608]
[1731720506228,0.00903384,91496.0,91494.0,0.3608]
[1731720506431,0.00903384,91495.0,91494.0,0.3608]
[1731720506835,0.00903384,91499.0,91494.0,0.3608]
[1731720507025,0.00903384,91498.0,91494.0,0.3608]
[1731720507333,0.10420168,91500.0,91497.0,0.12388936]
[1731720507526,0.023712,91499.0,91497.0,0.12388936]
[1731720507730,0.023712,91498.0,91494.0,0.3608]
[1731720507924,0.023712,91497.0,91494.0,0.3608]
[1731720508119,0.023712,91496.0,91494.0,0.3608]
[1731720508328,0.023712,91495.0,91494.0,0.3608]
[1731720508530,0.023712,91499.0,91494.0,0.3608]
[1731720508735,0.10420168,91500.0,91493.0,0.08129126]
[1731720508736,0.023712,91498.0,91493.0,0.08129126]
[1731720509030,0.023712,91497.0,91493.0,0.08129126]
[1731720509225,0.10420168,91500.0,91496.0,0.08129126]
[1731720509423,0.02444164,91499.0,91496.0,0.08129126]
[1731720509627,0.02444164,91498.0,91496.0,0.08129126]
[1731720509935,0.02444164,91497.0,91496.0,0.08129126]
[1731720510624,0.07756963,91497.0,91496.0,0.08129126]
[1731720511024,0.2163618,91497.0,91496.0,0.08129126]
[1731720511229,0.07756963,91497.0,91496.0,0.08129126]
[1731720511630,0.07756963,91497.0,91489.0,0.0326]
[1731720511829,0.10420168,91500.0,91496.0,0.08129126]
[1731720512131,0.21343512,91499.0,91497.0,0.0312]
[1731720512328,0.21343512,91498.0,91497.0,0.0312]
[1731720512724,0.21369512,91498.0,91497.0,0.0312]
[1731720513033,0.21369512,91498.0,91497.0,0.00660595]
[1731720513236,0.21369512,91498.0,91489.0,0.0326]
[1731720513531,0.21369512,91497.0,91495.0,0.08129126]
[1731720513730,0.21369512,91496.0,91495.0,0.08129126]
[1731720514032,0.20486153,91496.0,91495.0,0.08129126]
[1731720514231,0.3519274,91496.0,91495.0,0.08129126]
[1731720514422,0.20019357,91496.0,91495.0,0.08129126]
[1731720514623,0.20019357,91496.0,91494.0,0.08129126]
[1731720514624,0.19107209,91496.0,91494.0,0.08129126]
[1731720514829,0.19107209,91496.0,91494.0,0.12384625]
[1731720514830,0.19107209,91495.0,91494.0,0.12384625]
[1731720515933,0.21460846,91495.0,91494.0,0.12384625]
[1731720516832,0.02353637,91495.0,91494.0,0.12384625]
[1731720517832,0.01449711,91495.0,91494.0,0.12384625]
[1731720518126,0.0235578,91495.0,91494.0,0.12384625]
[1731720519234,0.0235578,91495.0,91494.0,0.48464625]
[1731720520824,0.0235578,91495.0,91494.0,0.3608]
[1731720522131,0.0235578,91495.0,91494.0,0.55545979]
[1731720522326,0.0235578,91495.0,91494.0,0.3608]
[1731720525340,0.00906069,91495.0,91494.0,0.55537656]
[1731720525546,0.16382613,91498.0,91494.0,0.55537656]
[1731720525733,0.00854472,91495.0,91494.0,0.55537656]
[1731720526134,0.00854472,91495.0,91494.0,0.3608]
[1731720526337,0.00854472,91495.0,91494.0,0.55537656]
[1731720527541,0.16382613,91499.0,91494.0,0.55537656]
[1731720527740,0.16382613,91499.0,91494.0,0.3608]
[1731720527946,0.00836012,91498.0,91494.0,0.3608]
[1731720528136,0.16382613,91499.0,91494.0,0.3608]
[1731720528137,0.00836012,91497.0,91494.0,0.3608]
[1731720528338,0.00836012,91497.0,91494.0,0.55537656]
[1731720528636,0.00836012,91496.0,91494.0,0.3608]
[1731720528831,0.00836012,91495.0,91494.0,0.3608]
[1731720529743,0.00835094,91495.0,91494.0,0.3608]
[1731720530641,0.00835094,91495.0,91494.0,0.55537656]
[1731720531043,0.00835094,91495.0,91494.0,0.3608]
[1731720532048,0.00835094,91495.0,91491.0,0.19457656]
[1731720532248,0.3608,91493.0,91491.0,0.19457656]
[1731720532446,0.19880283,91492.0,91487.0,0.03941181]
[1731720532652,0.19880283,91491.0,91487.0,0.03941181]
[1731720532945,0.19880283,91490.0,91487.0,0.03941181]
[1731720533135,0.19880283,91489.0,91487.0,0.03941181]
[1731720533340,0.06151063,91488.0,91487.0,0.03941181]
[1731720533746,0.06151063,91488.0,91487.0,8.144e-05]
[1731720534746,0.14615721,91488.0,91487.0,8.144e-05]
[1731720534949,0.23773602,91488.0,91487.0,8.144e-05]
[1731720535246,0.06151063,91488.0,91487.0,8.144e-05]
[1731720535435,0.16836213,91488.0,91487.0,8.144e-05]
[1731720535635,0.19928841,91488.0,91487.0,8.144e-05]
[1731720535949,0.22938841,91488.0,91487.0,8.144e-05]
[1731720536452,0.22957536,91488.0,91487.0,8.144e-05]
[1731720538949,0.22959537,91488.0,91487.0,8.144e-05]
[1731720540350,0.03875332,91488.0,91487.0,1.451e-05]
[1731720541444,0.1697082,91488.0,91487.0,1.451e-05]
[1731720541637,0.03875332,91488.0,91487.0,1.451e-05]
[1731720542036,0.03875034,91488.0,91487.0,1.451e-05]
[1731720544142,0.66667034,91488.0,91487.0,1.451e-05]
[1731720544655,0.71981069,91488.0,91487.0,1.451e-05]
[1731720544948,0.75301069,91488.0,91487.0,1.451e-05]
[1731720545141,0.94922308,91488.0,91487.0,1.451e-05]
[1731720545342,0.75301069,91488.0,91487.0,1.451e-05]
[1731720545541,0.94922749,91488.0,91487.0,1.451e-05]
[1731720545942,0.94903303,91488.0,91487.0,1.451e-05]
[1731720546149,0.42489623,91488.0,91459.0,0.08131683]
[1731720546338,0.42489623,91488.0,91458.0,0.0031]
[1731720546339,0.3608,91464.0,91458.0,0.0031]
[1731720546544,0.12450895,91463.0,91458.0,0.0031]
[1731720546846,0.00838895,91462.0,91458.0,0.0031]
[1731720547043,0.00838895,91461.0,91458.0,0.0031]
[1731720547242,0.00838895,91460.0,91458.0,0.0031]
[1731720547443,0.11612,91463.0,91458.0,0.0031]
[1731720547444,0.08970578,91459.0,91458.0,0.0031]
[1731720547653,0.06154002,91459.0,91458.0,0.0031]
[1731720548156,0.06154002,91459.0,91442.0,0.00011359]
[1731720548157,0.68954002,91459.0,91442.0,0.00011359]
[1731720548457,0.49143679,91445.0,91442.0,0.00011359]
[1731720548658,0.0825,91444.0,91442.0,0.00011359]
[1731720548844,0.49143679,91445.0,91442.0,0.00011359]
[1731720549040,0.08552,91444.0,91442.0,0.00011359]
[1731720551460,8.144e-05,91443.0,91442.0,0.00011359]
[1731720554254,0.36088144,91443.0,91442.0,0.00011359]
[1731720556458,0.08556144,91443.0,91442.0,0.00011359]
[1731720556656,8.144e-05,91443.0,91442.0,0.00011359]
[1731720556847,8.144e-05,91443.0,91442.0,0.03121359]
[1731720558754,8.144e-05,91443.0,91442.0,0.39201359]
[1731720569664,0.36088144,91443.0,91442.0,0.00011359]
[1731720570666,1.02704256,91443.0,91423.0,0.19457656]
[1731720570870,0.3608,91424.0,91413.0,0.19457656]
[1731720571071,0.3608,91414.0,91409.0,0.21644858]
[1731720571267,0.3608,91414.0,91411.0,0.19457656]
[1731720571764,0.3608,91414.0,91410.0,0.19457656]
[1731720571965,0.08548,91413.0,91412.0,0.55537656]
[1731720572266,0.08548,91413.0,91412.0,0.3608]
[1731720572675,0.3608,91424.0,91412.0,0.3608]
[1731720572972,0.08548,91423.0,91414.0,0.1944833]
[1731720574264,0.08548,91423.0,91415.0,0.1944833]
[1731720575163,0.08548,91423.0,91416.0,0.1944833]
[1731720575363,0.08548,91423.0,91415.0,0.1944833]
[1731720578162,0.08548,91423.0,91414.0,0.1944833]
[1731720578970,0.08548,91423.0,91413.0,0.1944833]
[1731720579167,0.08548,91423.0,91412.0,0.5552833]
[1731720579362,0.08548,91423.0,91412.0,0.3608]
[1731720580165,0.08548,91423.0,91412.0,0.5552833]
[1731720580365,0.08548,91423.0,91414.0,0.1944833]
[1731720580573,0.08548,91423.0,91406.0,0.02187893]
[1731720580574,0.08548,91423.0,91410.0,0.1944833]
[1731720580779,0.3608,91416.0,91408.0,0.1944833]
[1731720581079,0.3608,91416.0,91405.0,0.1944833]
[1731720581272,0.3608,91416.0,91404.0,0.06930331]
[1731720581579,0.3608,91416.0,91401.0,0.00010523]
[1731720581580,0.3608,91407.0,91401.0,0.00010523]
[1731720581773,0.08548,91406.0,91401.0,0.03802426]
[1731720583783,0.08548,91406.0,91401.0,0.00010523]
[1731720589180,0.3608,91405.0,91401.0,0.00010523]
[1731720589381,0.000112,91404.0,91401.0,0.00010523]
[1731720589586,0.328312,91404.0,91401.0,0.00010523]
[1731720589782,0.3282,91403.0,91401.0,0.00010523]
[1731720589977,0.3282,91403.0,91366.0,0.1944833]
[1731720590188,0.3608,91384.0,91369.0,0.0639]
[1731720590388,0.08544,91383.0,91369.0,0.0639]
[1731720596587,0.08544,91386.0,91382.0,0.123993]
[1731720596789,0.08544,91387.0,91383.0,0.0308]
[1731720597475,0.08544,91388.0,91383.0,0.0308]
[1731720598784,0.08544,91391.0,91383.0,0.0308]
[1731720600279,0.08544,91391.0,91383.0,0.06955572]
[1731720601395,0.44624,91393.0,91383.0,0.06955572]
[1731720603289,0.44624,91393.0,91383.0,0.26403902]
[1731720604488,0.44624,91393.0,91384.0,0.1944833]
[1731720605099,0.44624,91393.0,91383.0,0.26403902]
[1731720605389,0.44624,91393.0,91384.0,0.1944833]
[1731720605993,0.44624,91393.0,91383.0,0.06955572]
[1731720605994,0.3608,91402.0,91391.0,0.123993]
[1731720606194,0.09054,91416.0,91398.0,0.3608]
[1731720606891,0.08544,91414.0,91402.0,0.08143814]
[1731720607097,0.08544,91414.0,91403.0,0.0325]
[1731720607296,0.08544,91414.0,91409.0,0.3608]
[1731720607487,0.08544,91414.0,91410.0,0.033]
[1731720608196,0.00012423,91413.0,91410.0,0.033]
[1731720608898,0.12409393,91411.0,91410.0,0.033]
[1731720609192,0.00012423,91413.0,91410.0,0.033]
[1731720609395,0.00012423,91413.0,91410.0,0.2274833]
[1731720610089,0.00012423,91413.0,91411.0,0.1944833]
[1731720610292,0.00012423,91413.0,91410.0,0.2274833]
[1731720613098,0.00012423,91413.0,91410.0,0.033]
[1731720613995,0.00012423,91413.0,91410.0,0.07240871]
[1731720614193,0.48489393,91411.0,91402.0,0.1944833]
[1731720614494,0.48489393,91411.0,91392.0,0.1944833]
[1731720614495,0.3608,91403.0,91392.0,0.1944833]
[1731720614698,0.3608,91403.0,91390.0,0.1944833]
[1731720614699,0.08536,91402.0,91390.0,0.1944833]
[1731720615492,0.08536,91402.0,91391.0,0.1944833]
[1731720615697,0.0308,91401.0,91391.0,0.1944833]
[1731720616291,0.0308,91401.0,91389.0,0.39931491]
[1731720616487,0.12409393,91397.0,91389.0,0.39931491]
[1731720616908,0.12409393,91397.0,91392.0,0.1944833]
[1731720617196,0.0308,91401.0,91392.0,0.1944833]
[1731720618495,0.36136001,91403.0,91389.0,0.39931491]
[1731720618695,0.3608,91403.0,91392.0,0.1944833]
[1731720618886,0.3608,91403.0,91393.0,0.2566833]
[1731720619092,0.3608,91403.0,91394.0,0.1944833]
[1731720619300,0.3608,91411.0,91395.0,0.12409393]
[1731720619497,0.00012423,91413.0,91405.0,0.3608]
[1731720620697,0.00012423,91413.0,91405.0,0.55528097]
[1731720620893,0.00012423,91413.0,91405.0,0.3608]
[1731720621992,0.3608,91412.0,91405.0,0.3608]
[1731720622700,0.3608,91412.0,91405.0,0.3495]
[1731720623990,0.3608,91412.0,91405.0,0.03928363]
[1731720624199,0.00012423,91413.0,91396.0,0.0328]
[1731720624200,0.13083172,91413.0,91396.0,0.0328]
[1731720624700,0.12409393,91405.0,91395.0,0.3608]
[1731720624902,0.12409393,91398.0,91393.0,0.03941707]
[1731720625102,0.12409393,91398.0,91387.0,0.3608]
[1731720625103,0.3919,91397.0,91387.0,0.3608]
[1731720626899,0.3919,91397.0,91387.0,0.39972949]
[1731720630399,0.3919,91397.0,91392.0,0.19448097]
[1731720630699,0.3919,91397.0,91390.0,0.19448097]
[1731720630892,0.3919,91397.0,91389.0,0.19448097]
[1731720631901,0.3919,91397.0,91388.0,0.19448097]
[1731720632093,0.3608,91389.0,91381.0,0.19448097]
[1731720632300,0.08536,91388.0,91383.0,0.19448097]
[1731720632509,0.12409393,91384.0,91379.0,0.19448097]
[1731720632795,0.3608,91380.0,91377.0,0.19448097]
[1731720633002,0.3608,91380.0,91376.0,0.19448097]
[1731720633493,0.3608,91380.0,91377.0,0.19448097]
[1731720633698,0.3608,91380.0,91378.0,0.19448097]
[1731720634203,0.3608,91380.0,91374.0,0.19448097]
[1731720634708,0.3608,91380.0,91378.0,0.19448097]
[1731720635203,0.3608,91380.0,91377.0,0.19448097]
[1731720635599,0.3608,91380.0,91372.0,0.19448097]
[1731720635797,0.12409393,91373.0,91367.0,0.19448097]
[1731720636098,0.3608,91368.0,91364.0,0.19448097]
[1731720636292,0.3608,91368.0,91360.0,0.25930797]
[1731720636293,0.3608,91368.0,91362.0,0.19448097]
[1731720636492,0.12409393,91366.0,91361.0,0.00013525]
[1731720638806,0.16366457,91366.0,91361.0,0.00013525]
[1731720639701,0.08536,91365.0,91361.0,0.00013525]
[1731720640603,0.0321,91364.0,91361.0,0.00013525]
[1731720644000,0.32836,91363.0,91361.0,0.00013525]
[1731720644415,0.39366,91362.0,91361.0,0.00013525]
[1731720644603,0.0653,91362.0,91361.0,0.00013525]
[1731720644909,0.39366,91362.0,91361.0,0.00013525]
[1731720649821,0.75446,91362.0,91361.0,0.00013525]
[1731720650109,1.05446,91362.0,91342.0,0.0313]
[1731720650319,0.48489393,91343.0,91336.0,0.0313]
[1731720650518,0.08532,91342.0,91336.0,0.0313]
[1731720650708,0.08532,91342.0,91329.0,0.0307]
[1731720650914,0.12409393,91336.0,91330.0,0.0312]
[1731720651214,0.08532,91335.0,91330.0,0.0312]
[1731720651415,0.08532,91335.0,91329.0,0.0307]
[1731720652307,0.3608,91332.0,91329.0,0.0307]
[1731720654221,0.3608,91332.0,91321.0,0.0309]
[1731720654407,0.3608,91332.0,91326.0,0.0309]
[1731720656512,0.08532,91331.0,91326.0,0.0309]
[1731720658822,0.13070749,91350.0,91326.0,0.0309]
[1731720659008,0.09042,91353.0,91345.0,0.48489393]
[1731720659316,0.09042,91353.0,91346.0,0.0932]
[1731720659317,0.08532,91353.0,91346.0,0.0932]
[1731720659524,0.3608,91360.0,91352.0,0.12409393]
[1731720659815,0.3608,91360.0,91346.0,0.0932]
[1731720660019,0.12409393,91354.0,91346.0,0.0932]
[1731720660320,0.3608,91360.0,91346.0,0.0932]
[1731720660321,0.08532,91356.0,91346.0,0.0932]
[1731720662513,0.08532,91356.0,91346.0,0.13205915]
[1731720663312,0.08532,91356.0,91346.0,0.32654012]
[1731720663823,0.08532,91356.0,91346.0,0.13205915]
[1731720664227,0.08532,91356.0,91347.0,0.19448097]
[1731720664520,0.00011593,91367.0,91353.0,0.3608]
[1731720664716,0.00011593,91367.0,91366.0,0.12409393]
[1731720664920,0.00487,91377.0,91366.0,0.12409393]
[1731720665114,0.00487,91377.0,91368.0,0.19448097]
[1731720665422,0.00487,91377.0,91367.0,0.0322]
[1731720665423,0.00487,91377.0,91376.0,0.19448097]
[1731720665609,0.00487,91377.0,91375.0,0.19448097]
[1731720665810,0.00487,91377.0,91374.0,0.19448097]
[1731720665811,0.0001177,91376.0,91374.0,0.19448097]
[1731720666519,0.0001177,91376.0,91373.0,0.19448097]
[1731720666914,0.0001177,91376.0,91374.0,0.19448097]
[1731720667223,0.0001177,91376.0,91373.0,0.19448097]
[1731720667413,0.0001177,91376.0,91371.0,0.19448097]
[1731720667717,0.0001177,91376.0,91369.0,0.19448097]
[1731720668227,0.0001177,91376.0,91370.0,0.064]
[1731720670026,0.0001177,91376.0,91373.0,0.12409393]
[1731720670216,0.0001177,91376.0,91375.0,0.3608]
[1731720670726,0.0001177,91376.0,91375.0,0.48489393]
[1731720672123,5e-05,91386.0,91375.0,0.48489393]
[1731720673020,8.988e-05,91379.0,91375.0,0.48489393]
[1731720674318,8.988e-05,91379.0,91375.0,0.3608]
[1731720675313,0.08524,91378.0,91375.0,0.3608]
[1731720675521,0.12409393,91376.0,91344.0,0.3608]
[1731720675715,0.3608,91362.0,91344.0,0.3608]
[1731720676017,0.21563848,91361.0,91344.0,0.48489393]
[1731720676225,0.13039848,91360.0,91344.0,0.48489393]
[1731720677222,0.13039848,91359.0,91344.0,0.48489393]
[1731720677414,0.13039848,91359.0,91344.0,0.3608]
[1731720678318,0.3608,91354.0,91344.0,0.3608]
[1731720678823,0.49119848,91354.0,91344.0,0.3608]
[1731720679227,0.3608,91354.0,91344.0,0.3608]
[1731720679523,0.49119848,91354.0,91344.0,0.3608]
[1731720679926,0.13039848,91353.0,91344.0,0.3608]
[1731720680121,0.49119848,91354.0,91344.0,0.3608]
[1731720680829,0.13039848,91353.0,91344.0,0.3608]
[1731720681128,0.12409393,91347.0,91344.0,0.3608]
[1731720681330,0.3608,91345.0,91323.0,0.12409393]
[1731720681831,0.49119848,91345.0,91323.0,0.12409393]
[1731720682024,0.49119848,91345.0,91335.0,0.0380369]
[1731720682625,0.3608,91345.0,91324.0,0.19448097]
[1731720682931,0.3608,91345.0,91333.0,0.0387765]
[1731720684134,0.3608,91345.0,91336.0,0.3608]
[1731720684333,0.36136001,91354.0,91336.0,0.3608]
[1731720684334,0.08524,91346.0,91338.0,0.12464393]
[1731720685934,0.08524,91348.0,91338.0,0.12464393]
[1731720686130,0.08524,91348.0,91339.0,0.0306]
[1731720686628,0.3608,91354.0,91346.0,0.12409393]
[1731720686928,0.08524,91350.0,91346.0,0.12409393]
[1731720687138,0.08524,91350.0,91344.0,0.3608]
[1731720687434,0.08524,91350.0,91344.0,0.55528097]
[1731720687943,0.08524,91350.0,91344.0,0.3608]
[1731720688228,0.08524,91350.0,91344.0,0.55528097]
[1731720688429,0.08524,91352.0,91344.0,0.55528097]
[1731720688832,0.08524,91352.0,91344.0,0.3608]
[1731720689624,0.08524,91352.0,91334.0,0.19448097]
[1731720689625,0.12409393,91345.0,91334.0,0.19448097]
[1731720689829,0.3608,91349.0,91333.0,0.3608]
[1731720690029,0.3608,91349.0,91333.0,0.39974355]
[1731720690234,0.3608,91349.0,91333.0,0.71831845]
[1731720690429,0.3608,91349.0,91335.0,0.19448097]
[1731720690732,0.3608,91349.0,91333.0,0.40074355]
[1731720690927,0.3608,91349.0,91333.0,0.39974355]
[1731720691335,0.3608,91349.0,91334.0,0.12409393]
[1731720693335,0.3608,91349.0,91343.0,0.12409393]
[1731720693535,0.08524,91356.0,91344.0,0.3608]
[1731720693937,0.08524,91356.0,91344.0,0.3916]
[1731720694335,0.08524,91356.0,91344.0,0.0308]
[1731720694535,0.08524,91356.0,91334.0,0.0316]
[1731720694738,0.08524,91356.0,91333.0,0.40074355]
[1731720694739,0.3608,91348.0,91333.0,0.40074355]
[1731720694938,0.3608,91348.0,91333.0,0.39974355]
[1731720695737,0.08524,91356.0,91333.0,0.39974355]
[1731720695937,0.3608,91349.0,91333.0,0.39974355]
[1731720698339,0.3608,91334.0,91325.0,0.21637683]
[1731720698643,0.3608,91334.0,91323.0,0.19448097]
[1731720698644,8.988e-05,91333.0,91323.0,0.19448097]
[1731720698948,0.06318988,91333.0,91318.0,0.3608]
[1731720699836,0.06318988,91333.0,91318.0,0.39977268]
[1731720702540,0.06318988,91333.0,91318.0,0.59425365]
[1731720703044,0.06318988,91333.0,91319.0,0.19448097]
[1731720703441,0.06318988,91333.0,91321.0,0.19448097]
[1731720704147,0.3608,91326.0,91322.0,0.19448097]
[1731720704355,0.0852,91325.0,91317.0,0.0001079]
[1731720704557,0.21559848,91325.0,91317.0,0.0001079]
[1731720704745,0.13039848,91324.0,91317.0,0.0001079]
[1731720705552,0.13039848,91323.0,91317.0,0.0001079]
[1731720707452,0.13039848,91324.0,91317.0,0.03922277]
[1731720707758,0.13039848,91323.0,91317.0,0.0001079]
[1731720707959,0.3608,91318.0,91317.0,0.0001079]
[1731720713156,0.48489393,91318.0,91317.0,0.0001079]
[1731720714258,0.3608,91318.0,91317.0,0.0001079]
[1731720714559,0.0314,91322.0,91317.0,0.0001079]
[1731720714560,0.08524,91322.0,91317.0,0.0001079]
[1731720715767,0.08524,91323.0,91317.0,0.0001079]
[1731720717465,0.3608,91326.0,91317.0,0.0001079]
[1731720717466,0.3608,91326.0,91319.0,0.19448097]
[1731720717666,0.0852,91332.0,91322.0,0.12409393]
[1731720717853,8.988e-05,91333.0,91323.0,0.0308]
[1731720718059,8.988e-05,91333.0,91330.0,0.48489393]
[1731720718659,8.988e-05,91333.0,91330.0,0.7442019]
[1731720719563,8.988e-05,91333.0,91330.0,0.48489393]
[1731720721371,8.988e-05,91333.0,91331.0,0.32848]
[1731720721560,8.988e-05,91333.0,91332.0,0.3608]
[1731720721561,8.8e-07,91333.0,91332.0,0.3608]
[1731720721761,8.8e-07,91333.0,91332.0,1.34192181]
[1731720722069,8.8e-07,91333.0,91332.0,0.3608]
[1731720722368,8.8e-07,91333.0,91316.0,0.1478]
[1731720722369,8.8e-07,91333.0,91322.0,0.23401648]
[1731720722572,0.3608,91325.0,91322.0,0.03874296]
[1731720722771,0.0852,91324.0,91322.0,0.03874296]
[1731720723268,8.8e-07,91333.0,91323.0,0.35016745]
[1731720723469,8.8e-07,91333.0,91332.0,0.3608]
[1731720724862,8.8e-07,91333.0,91332.0,0.62112756]
[1731720725458,8.8e-07,91333.0,91332.0,0.40038272]
[1731720725869,8.8e-07,91333.0,91332.0,0.66122694]
[1731720726066,8.8e-07,91333.0,91332.0,0.40038272]
[1731720726879,8.8e-07,91333.0,91332.0,0.3608]
[1731720727173,8.8e-07,91333.0,91327.0,0.19570842]
[1731720727369,0.3608,91332.0,91327.0,0.19570842]
[1731720727579,0.0852,91331.0,91323.0,0.07045654]
[1731720727873,0.13095723,91324.0,91323.0,0.07045654]
[1731720728074,0.13095723,91324.0,91323.0,0.0308]
[1731720729073,0.13095723,91324.0,91316.0,0.03]
[1731720729377,0.13095723,91325.0,91316.0,0.03]
[1731720729569,0.13095723,91325.0,91317.0,0.03949725]
[1731720729879,0.13095723,91325.0,91317.0,0.0001079]
[1731720730674,0.13095723,91324.0,91317.0,0.0001079]
[1731720733075,0.13095723,91323.0,91317.0,0.0001079]
[1731720733682,0.13095723,91321.0,91317.0,0.0001079]
[1731720733875,0.13095723,91318.0,91317.0,0.0001079]
[1731720734175,0.05323058,91318.0,91317.0,1.753e-05]
[1731720734681,0.0958,91322.0,91317.0,1.753e-05]
[1731720735370,0.2267816,91322.0,91317.0,1.753e-05]
[1731720735574,0.1309816,91321.0,91317.0,1.753e-05]
[1731720735879,0.0958,91322.0,91317.0,1.753e-05]
[1731720735880,0.1309816,91320.0,91317.0,1.753e-05]
[1731720736569,0.0958,91322.0,91317.0,1.753e-05]
[1731720736570,0.1309816,91321.0,91317.0,1.753e-05]
[1731720736882,0.12409393,91318.0,91317.0,1.753e-05]
[1731720740477,0.08516,91318.0,91317.0,1.753e-05]
[1731720742676,0.0958,91322.0,91317.0,1.753e-05]
[1731720742981,0.08516,91321.0,91317.0,1.753e-05]
[1731720743174,0.0958,91322.0,91317.0,1.753e-05]
[1731720743175,0.08516,91320.0,91317.0,1.753e-05]
[1731720743370,0.13085198,91318.0,91317.0,1.753e-05]
[1731720743679,0.08516,91320.0,91317.0,1.753e-05]
[1731720743875,0.13085084,91318.0,91317.0,1.753e-05]
[1731720744078,0.08516,91320.0,91317.0,1.753e-05]
[1731720744377,0.13085326,91318.0,91317.0,1.753e-05]
[1731720744682,0.08516,91320.0,91317.0,1.753e-05]
[1731720744882,0.13084715,91318.0,91317.0,1.753e-05]
[1731720746677,0.13084715,91319.0,91317.0,1.753e-05]
[1731720748872,0.21600715,91320.0,91317.0,1.753e-05]
[1731720749073,0.13084715,91321.0,91317.0,1.753e-05]
[1731720749481,0.13084715,91324.0,91317.0,1.753e-05]
[1731720749680,0.13084715,91332.0,91323.0,0.3608]
[1731720749976,8.8e-07,91333.0,91325.0,0.19570842]
[1731720750380,8.8e-07,91333.0,91326.0,0.19570842]
[1731720750573,8.8e-07,91333.0,91327.0,0.19570842]
[1731720750778,8.8e-07,91333.0,91328.0,0.19570842]
[1731720750976,8.8e-07,91333.0,91324.0,0.0643]
[1731720752179,8.8e-07,91333.0,91328.0,0.26075338]
[1731720754181,8.8e-07,91333.0,91329.0,0.26075338]
[1731720754383,8.8e-07,91333.0,91328.0,0.26075338]
[1731720754583,8.8e-07,91333.0,91332.0,0.19559993]
[1731720754774,8.8e-07,91333.0,91330.0,0.19559993]
[1731720754973,8.8e-07,91333.0,91325.0,0.19559993]
[1731720755189,8.8e-07,91333.0,91326.0,0.19559993]
[1731720755776,8.8e-07,91333.0,91328.0,0.19559993]
[1731720755976,8.8e-07,91333.0,91329.0,0.19559993]
[1731720757578,8.8e-07,91333.0,91328.0,0.19559993]
[1731720757778,8.8e-07,91333.0,91327.0,0.19559993]
[1731720758086,8.8e-07,91333.0,91323.0,0.39857136]
[1731720758087,5.088e-05,91333.0,91323.0,0.39857136]
[1731720758583,5.088e-05,91333.0,91323.0,0.3608]
[1731720758789,0.12409393,91331.0,91323.0,0.3608]
[1731720758991,0.08516,91330.0,91323.0,0.3608]
[1731720761186,0.08516,91330.0,91319.0,0.19559993]
[1731720761187,0.48489393,91324.0,91319.0,0.03961285]
[1731720761494,0.48489393,91324.0,91317.0,1.753e-05]
[1731720761681,0.61574306,91324.0,91317.0,1.753e-05]
[1731720761991,0.48489393,91324.0,91317.0,1.753e-05]
[1731720762691,0.61574306,91324.0,91317.0,1.753e-05]
[1731720765082,0.24950676,91323.0,91317.0,1.753e-05]
[1731720766188,0.48549394,91324.0,91317.0,1.753e-05]
[1731720766189,0.24950676,91322.0,91317.0,1.753e-05]
[1731720766391,0.05323306,91321.0,91317.0,1.753e-05]
[1731720766603,0.05323306,91320.0,91317.0,1.753e-05]
[1731720766889,0.1962737,91322.0,91302.0,0.0309]
[1731720766890,0.13835306,91319.0,91302.0,0.0309]
[1731720767088,0.13096832,91310.0,91302.0,0.0309]
[1731720767596,0.13096832,91310.0,91305.0,0.3608]
[1731720768081,0.16371041,91316.0,91305.0,0.48489393]
[1731720768082,0.13096832,91309.0,91305.0,0.48489393]
[1731720768283,0.0051,91322.0,91305.0,0.84569393]
[1731720768284,0.13096832,91314.0,91305.0,0.84569393]
[1731720768493,0.0657,91332.0,91315.0,0.12409393]
[1731720768494,0.13096832,91318.0,91315.0,0.12409393]
[1731720768690,0.13096832,91319.0,91316.0,0.0304]
[1731720768892,0.13096832,91320.0,91316.0,0.0304]
[1731720770101,0.13096832,91319.0,91316.0,0.0304]
[1731720771188,0.13096832,91320.0,91316.0,0.0304]
[1731720771693,0.00515088,91333.0,91316.0,0.0304]
[1731720771694,0.13096832,91324.0,91316.0,0.0304]
[1731720771894,0.13096832,91325.0,91323.0,0.48489393]
[1731720772091,0.13096832,91330.0,91324.0,0.0643]
[1731720772295,5.088e-05,91333.0,91329.0,0.12409393]
[1731720772296,0.13096832,91331.0,91329.0,0.12409393]
[1731720772984,5.088e-05,91333.0,91329.0,0.38484731]